bitfinex/quotes_ETHUSD_20241130
["timestamp","ask_amount","ask_price","bid_price","bid_amount"]
[1732963517776,0.55,3668.2,3667.7,2.72649]
[1732963517999,0.55,3668.0,3667.7,2.72649]
[1732963518308,0.55,3668.2,3667.8,2.72641]
[1732963518565,0.55,3668.2,3667.5,2.72664]
[1732963518566,0.25095588,3668.1,3667.5,2.72659]
[1732963518718,0.55,3668.0,3667.5,2.72659]
[1732963519021,0.55,3667.8,3667.3,3.53808]
[1732963519201,0.55,3667.8,3667.2,2.72686]
[1732963519379,0.55,3667.6,3667.3,2.72673]
[1732963520020,0.55,3667.9,3667.0,0.8113]
[1732963520218,0.25093995,3667.8,3667.5,2.72659]
[1732963520422,0.55,3667.9,3667.5,2.72659]
[1732963520915,0.55,3667.7,3667.3,2.72676]
[1732963521277,0.55,3667.9,3667.4,2.72669]
[1732963521579,0.55,3667.7,3667.4,2.72669]
[1732963521776,0.55,3667.7,3667.0,0.8113]
[1732963522079,0.55,3667.5,3666.9,2.72702]
[1732963522290,0.55,3667.3,3667.0,2.72701]
[1732963522628,0.55,3667.5,3667.2,2.72687]
[1732963522833,0.55,3667.6,3667.2,2.72687]
[1732963523132,0.55,3667.6,3666.7,0.8113]
[1732963523427,0.55,3667.2,3666.6,2.72726]
[1732963523829,0.55,3667.0,3666.6,2.72726]
[1732963524337,0.80077749,3667.2,3666.6,2.72726]
[1732963524489,0.55,3667.0,3666.6,2.72726]
[1732963525230,0.80065905,3667.2,3666.6,2.72726]
[1732963525448,3.27693,3667.2,3666.4,2.72747]
[1732963525727,0.55,3667.0,3666.4,2.72747]
[1732963526330,0.80054358,3667.0,3666.4,2.72747]
[1732963526639,0.55,3667.0,3666.5,2.72739]
[1732963528809,11.46909286,3667.0,3666.3,2.72753]
[1732963529007,11.46909286,3667.0,3666.6,0.0357718]
[1732963529344,11.46909286,3667.0,3666.3,2.72753]
[1732963529345,11.88847731,3667.0,3666.3,2.72753]
[1732963529508,11.88847731,3667.0,3666.4,0.0358176]
[1732963530326,0.55,3666.8,3666.4,0.0358176]
[1732963530526,0.03409215,3666.7,3665.8,0.8113]
[1732963530856,0.55,3666.4,3665.9,0.03593211]
[1732963531015,0.58409578,3666.4,3665.9,2.76373211]
[1732963532547,0.58409578,3666.4,3665.9,0.03593211]
[1732963532954,0.58409578,3666.4,3666.0,0.03590921]
[1732963533158,3.31156578,3666.4,3666.0,0.03590921]
[1732963533363,0.8327,3666.3,3666.1,0.0358863]
[1732963533655,0.8327,3666.3,3665.5,0.8309]
[1732963533656,0.55,3666.2,3665.5,0.8309]
[1732963533857,0.55,3666.2,3665.9,2.72783]
[1732963534061,0.8327,3666.6,3665.6,2.09028743]
[1732963534245,0.8327,3666.6,3666.4,2.67741]
[1732963535127,0.8327,3666.6,3666.2,2.7276]
[1732963535331,0.55,3666.5,3665.9,2.7278]
[1732963535749,3.27741,3666.5,3665.9,2.7278]
[1732963535922,0.55,3666.3,3665.8,2.72791]
[1732963536520,0.55,3666.5,3665.8,2.72791]
[1732963536716,0.960996,3666.5,3665.6,2.72806]
[1732963536920,0.55,3666.3,3665.6,2.72806]
[1732963537256,0.55,3666.3,3665.7,2.72798]
[1732963537483,0.55,3666.3,3664.3,0.1]
[1732963537484,2.72814,3665.5,3664.0,0.00213331]
[1732963537663,0.55,3664.4,3664.0,0.00213331]
[1732963537984,0.8327,3664.5,3664.0,0.00213331]
[1732963537985,0.55,3664.2,3664.0,0.00213331]
[1732963538133,3.27916,3664.2,3664.0,0.00213331]
[1732963538333,4.60939559,3664.1,3664.0,0.00213331]
[1732963538759,2.81963605,3664.1,3664.0,0.00213331]
[1732963539073,5.54881605,3664.1,3664.0,0.00213331]
[1732963539232,6.79251205,3664.1,3664.0,0.00213331]
[1732963540267,6.79251205,3664.1,3663.4,0.0008]
[1732963540268,3.27933,3663.9,3663.4,0.0008]
[1732963540575,3.27933,3663.9,3663.5,0.03326622]
[1732963540990,8.74206286,3663.9,3663.5,0.03326622]
[1732963541132,8.19206286,3663.7,3663.5,0.03326622]
[1732963541332,8.19206286,3663.7,3663.4,0.0008]
[1732963541333,0.55,3663.6,3663.4,0.0008]
[1732963541529,0.55,3663.6,3663.5,2.76289622]
[1732963542669,0.55,3663.6,3663.5,0.03326622]
[1732963544481,9.84175887,3663.6,3663.5,0.03326622]
[1732963544633,9.84175887,3663.6,3663.4,0.0008]
[1732963544634,8.74206286,3663.6,3663.4,0.0008]
[1732963545043,8.74206286,3663.6,3663.5,0.03359]
[1732963547336,11.76509113,3663.6,3663.5,0.03359]
[1732963547543,12.94160024,3663.6,3663.5,0.03359]
[1732963547777,9.84175887,3663.6,3663.4,2.73049]
[1732963547978,8.19206286,3663.6,3663.5,2.72963]
[1732963548182,8.19206286,3663.6,3663.5,0.03397533]
[1732963549697,10.30185112,3663.6,3663.5,0.03397533]
[1732963550217,13.03140112,3663.6,3663.5,0.03397533]
[1732963550648,13.03140112,3663.6,3663.4,0.0008]
[1732963550649,0.55,3663.5,3663.4,0.0008]
[1732963551163,0.72708826,3663.5,3663.4,0.0008]
[1732963551755,1.27708826,3663.5,3663.4,0.0008]
[1732963552156,0.55,3663.5,3663.4,0.0008]
[1732963552560,0.8327,3663.6,3663.4,2.73049]
[1732963552777,1.3827,3663.6,3663.5,0.03402879]
[1732963552959,0.7542,3663.1,3662.0,0.2727]
[1732963553290,0.55,3662.6,3662.0,0.2727]
[1732963553475,0.55,3662.6,3661.9,2.73077]
[1732963553965,1.27708826,3662.6,3662.1,2.73065]
[1732963554165,0.55,3662.4,3661.7,2.73095]
[1732963554370,8.91915112,3662.5,3661.5,0.25]
[1732963554685,8.19206286,3662.5,3662.4,2.73044]
[1732963555511,8.91915112,3662.5,3662.4,2.73044]
[1732963556763,8.19206286,3662.5,3662.4,2.73044]
[1732963556971,3.0,3663.1,3662.9,2.73007]
[1732963557270,3.0,3663.1,3661.7,2.73092]
[1732963557271,8.19206286,3662.9,3662.5,2.7303]
[1732963557467,0.76726116,3662.8,3662.3,2.73051]
[1732963557668,0.4465902,3662.7,3661.5,2.98108]
[1732963558000,0.73313067,3662.8,3662.6,2.7303]
[1732963558292,0.73313067,3662.8,3661.7,0.7683]
[1732963558293,0.4465902,3662.7,3662.5,2.73031]
[1732963558466,10.3843821,3662.7,3661.7,0.7683]
[1732963558798,0.7542,3662.5,3662.1,2.73066]
[1732963559096,0.7542,3662.5,3661.5,0.25]
[1732963559097,8.94626286,3661.8,3661.5,0.25]
[1732963559252,0.7542,3661.6,3661.2,0.1899387]
[1732963559462,0.2485099,3661.5,3661.2,0.1899387]
[1732963559652,0.7542,3661.6,3661.2,0.1899387]
[1732963560390,0.7542,3661.6,3661.3,2.75794242]
[1732963560595,0.7542,3661.6,3661.4,2.73118]
[1732963560795,0.7542,3661.6,3659.3,2.73272]
[1732963560796,8.19206286,3661.5,3659.3,2.73272]
[1732963560995,3.7542,3660.4,3658.8,0.7683]
[1732963561207,3.6781,3658.7,3657.5,0.1599387]
[1732963561504,3.55,3658.2,3657.2,0.0299387]
[1732963561652,8.22624699,3658.1,3657.2,0.0299387]
[1732963561854,8.19206286,3658.0,3657.2,2.7642287]
[1732963562056,0.03418119,3657.9,3657.2,0.0299387]
[1732963562369,0.55,3657.7,3657.2,0.0299387]
[1732963562573,0.31424645,3657.7,3656.9,2.7345]
[1732963562879,0.55,3657.7,3656.8,2.73459]
[1732963563086,8.19206286,3657.5,3656.9,2.73453]
[1732963563253,5.7341,3657.5,3655.2,0.03]
[1732963563455,8.19206286,3657.6,3656.8,2.73461]
[1732963563697,8.19206286,3657.6,3657.0,2.73446]
[1732963563879,8.19206286,3657.5,3656.8,2.73461]
[1732963564208,8.19206286,3657.7,3657.0,2.73447]
[1732963564405,0.03418058,3657.6,3657.0,2.73447]
[1732963564699,8.19206286,3657.7,3657.0,2.73446]
[1732963565263,8.19206286,3657.7,3657.1,2.73438]
[1732963565664,8.19206286,3657.7,3656.3,0.7683]
[1732963565665,8.19206286,3657.7,3656.3,3.50323]
[1732963565866,8.19206286,3657.7,3657.2,2.7343]
[1732963566182,8.19206286,3657.7,3657.3,2.73423]
[1732963566559,5.13504975,3658.8,3657.0,2.73445]
[1732963566560,8.19206286,3658.7,3658.2,2.73358]
[1732963566760,8.19206286,3659.2,3658.3,3.11218974]
[1732963566999,0.7542,3659.8,3659.2,2.73276]
[1732963567208,0.7542,3660.4,3658.9,1.1119952]
[1732963567411,0.03416138,3660.2,3658.8,2.73307]
[1732963567705,8.19206286,3660.1,3659.0,2.73294]
[1732963568014,0.03416393,3660.0,3658.6,2.73328]
[1732963568312,0.03416393,3660.0,3658.7,2.73319]
[1732963568460,8.19206286,3659.9,3658.2,2.73353]
[1732963568822,0.7542,3659.6,3657.7,2.4780547]
[1732963568962,3.03417412,3659.5,3657.7,2.4780547]
[1732963569307,8.19206286,3659.4,3658.6,2.4780547]
[1732963569507,8.19206286,3659.4,3658.7,2.73314]
[1732963569797,0.03416531,3659.3,3658.5,2.73336]
[1732963570006,0.89462629,3659.2,3658.5,2.73336]
[1732963570221,0.89462629,3659.2,3658.2,2.4780547]
[1732963570387,11.19206286,3658.8,3657.6,2.73402]
[1732963570698,8.19206286,3658.8,3658.0,2.73372]
[1732963570900,8.19206286,3658.6,3658.0,2.73372]
[1732963571060,0.61663645,3658.5,3657.7,2.7339]
[1732963571403,0.8042,3658.4,3657.8,2.73381]
[1732963571605,0.8042,3658.4,3658.0,2.73365]
[1732963571759,0.8042,3658.4,3658.1,2.73365]
[1732963571966,8.19206286,3658.6,3657.8,2.4780547]
[1732963572262,8.19206286,3659.0,3658.5,2.73336]
[1732963572465,8.19206286,3659.0,3658.4,2.73342]
[1732963572466,8.19206286,3659.0,3658.7,2.7332]
[1732963572661,0.8042,3659.1,3658.4,2.73342]
[1732963572662,8.19206286,3658.9,3658.4,2.73338]
[1732963572861,8.19206286,3658.9,3658.8,2.73306]
[1732963573300,8.19206286,3658.9,3658.6,2.73328]
[1732963573500,8.19206286,3658.9,3658.4,2.7334]
[1732963573662,8.19206286,3658.9,3657.8,2.72586017]
[1732963573663,0.89962629,3658.9,3657.8,2.72586017]
[1732963573864,0.89962629,3658.9,3658.5,2.73335]
[1732963574207,9.09168915,3658.9,3658.6,2.73328]
[1732963574505,9.09168915,3658.9,3658.8,2.73313]
[1732963574506,8.19206286,3658.9,3658.8,2.73313]
[1732963575100,0.8042,3660.3,3658.9,2.73299]
[1732963575428,2.73473,3656.7,3655.2,2.76576]
[1732963575644,0.78023418,3656.6,3655.2,2.76576]
[1732963575809,0.03419939,3656.6,3655.2,0.03]
[1732963576427,0.03419939,3656.6,3654.2,0.03]
[1732963576428,3.55,3656.3,3654.2,0.03]
[1732963576638,0.55,3656.1,3655.2,2.73579]
[1732963576836,0.55,3655.9,3655.0,2.73597]
[1732963577130,0.03420112,3655.8,3655.0,2.73597]
[1732963577342,8.99626286,3655.7,3654.8,2.73608]
[1732963577643,8.99626286,3655.7,3654.5,2.4780547]
[1732963577791,8.99626286,3655.7,3655.3,2.73568]
[1732963578319,8.99626286,3655.7,3655.3,2.73571]
[1732963578503,8.19206286,3655.6,3655.4,2.73564]
[1732963579502,8.19206286,3655.6,3654.7,2.73614]
[1732963579702,0.0341985,3655.5,3655.4,2.73563]
[1732963579890,8.19206286,3655.6,3655.2,2.73581]
[1732963580086,8.19206286,3655.6,3655.4,2.7356]
[1732963580291,8.19206286,3655.6,3654.8,2.73607]
[1732963581107,8.19206286,3655.6,3655.4,2.73561]
[1732963581418,8.19206286,3655.6,3654.8,2.73607]
[1732963581590,8.19206286,3655.4,3655.3,2.73575]
[1732963582462,8.19206286,3656.1,3655.5,2.7356]
[1732963582756,8.19206286,3656.1,3655.5,2.73552]
[1732963582936,8.19206286,3656.1,3655.6,2.73549]
[1732963584112,8.19206286,3655.9,3655.3,2.7357]
[1732963584315,9.09168915,3655.9,3655.5,2.73558]
[1732963584546,9.09168915,3655.9,3655.6,2.73552]
[1732963584958,8.19206286,3655.9,3655.7,2.73543]
[1732963585356,8.19206286,3655.9,3655.8,2.73537]
[1732963587158,8.19206286,3655.9,3655.6,2.73552]
[1732963587442,8.19206286,3655.9,3655.7,2.73541]
[1732963587962,8.19206286,3655.9,3655.4,2.73563]
[1732963588274,0.85340632,3655.8,3655.4,2.73563]
[1732963588437,0.03419855,3655.8,3655.4,2.73563]
[1732963588767,0.03419855,3655.8,3655.6,2.73547]
[1732963588966,8.19206286,3655.6,3655.5,2.7356]
[1732963589267,8.19206286,3655.5,3655.4,2.73567]
[1732963592457,8.19206286,3655.5,3655.2,2.73579]
[1732963593051,8.19206286,3655.5,3655.4,2.73567]
[1732963594286,0.55,3656.0,3655.6,2.73551]
[1732963594483,0.87420629,3655.9,3654.6,0.765]
[1732963594652,8.19206286,3655.7,3655.6,2.73552]
[1732963597442,8.19206286,3655.7,3655.5,2.73558]
[1732963597855,8.19206286,3655.7,3655.6,2.73552]
[1732963600267,8.44102753,3655.7,3655.6,2.73552]
[1732963600465,8.44102753,3655.7,3655.6,2.72994545]
[1732963600965,8.19206286,3655.7,3655.6,2.72994545]
[1732963601151,8.44102473,3655.7,3655.6,2.72994545]
[1732963603000,8.14776286,3655.7,3655.6,2.72994545]
[1732963603492,8.39734189,3655.7,3655.6,2.72994545]
[1732963605255,8.96977785,3655.7,3655.6,2.72994545]
[1732963606357,8.97117369,3655.7,3655.6,2.72994545]
[1732963608293,0.82341083,3655.7,3655.6,3.276507]
[1732963608493,0.25090233,3655.7,3655.6,3.276507]
[1732963608959,2.33e-06,3655.7,3655.6,3.276507]
[1732963609302,0.17103311,3656.4,3656.3,2.735]
[1732963609506,0.40146484,3656.4,3656.3,2.735]
[1732963609860,0.41822014,3657.1,3657.0,2.73448]
[1732963610083,9.57686447,3657.1,3655.4,3.0]
[1732963610364,8.14776286,3656.9,3656.1,2.73514]
[1732963610903,8.14776286,3656.8,3656.7,2.73469]
[1732963613164,8.14776286,3656.8,3656.3,2.73499]
[1732963613366,9.26212084,3657.6,3657.5,2.7341]
[1732963613582,8.14776286,3657.6,3656.7,2.7347]
[1732963613919,8.14776286,3657.8,3657.7,2.73395]
[1732963614065,8.14776286,3657.8,3657.5,2.73405]
[1732963614417,8.14776286,3658.3,3657.5,2.73405]
[1732963614577,8.14776286,3658.3,3657.9,2.73375]
[1732963614782,8.14776286,3658.2,3656.9,2.73454]
[1732963614979,9.04404915,3658.1,3658.0,2.7337]
[1732963615807,8.14776286,3657.9,3657.8,2.73386]
[1732963616516,8.14776286,3658.0,3657.0,3.56571]
[1732963616668,8.14776286,3658.0,3657.8,2.73385]
[1732963616874,8.14776286,3657.9,3657.8,2.73385]
[1732963617696,8.14776286,3657.9,3657.6,2.73401]
[1732963617900,8.14776286,3657.9,3657.8,2.73388]
[1732963620313,8.14776286,3657.9,3657.8,3.56518]
[1732963620907,8.14776286,3658.7,3658.2,2.73353]
[1732963621222,9.04404915,3658.7,3658.5,2.73335]
[1732963621523,8.14776286,3658.6,3658.5,2.73335]
[1732963622414,8.14776286,3658.6,3658.3,2.73345]
[1732963622571,8.14776286,3658.6,3658.5,2.73336]
[1732963623126,8.14776286,3658.5,3658.3,2.73345]
[1732963623420,8.14776286,3658.5,3657.8,0.8313]
[1732963623421,8.14776286,3658.4,3657.8,2.73388]
[1732963623574,8.14776286,3658.4,3657.4,2.73418]
[1732963623785,8.14776286,3658.4,3658.0,2.73366]
[1732963623982,8.14776286,3658.4,3657.9,2.73378]
[1732963624215,8.14776286,3658.4,3658.2,2.73356]
[1732963624431,8.14776286,3658.4,3658.3,2.73351]
[1732963625636,8.14776286,3658.4,3658.3,3.56481]
[1732963626009,2.7325,3659.7,3658.3,0.8313]
[1732963626010,8.14776286,3659.5,3658.3,0.8313]
[1732963626343,1.12219222,3659.4,3658.3,0.8313]
[1732963626634,1.12219222,3659.4,3658.9,2.73305]
[1732963626992,1.12219222,3659.4,3659.0,2.73294]
[1732963628136,1.08802829,3659.4,3659.2,2.73276]
[1732963628449,8.14776286,3659.5,3659.2,2.73276]
[1732963628607,8.14776286,3659.5,3659.3,2.7327]
[1732963628800,8.14776286,3659.5,3659.0,2.73298]
[1732963628999,8.14776286,3659.5,3659.3,2.73269]
[1732963629197,8.14776286,3659.5,3658.8,2.73312]
[1732963629442,0.8489377,3659.4,3658.9,2.73305]
[1732963629627,0.81477629,3659.4,3658.9,2.73301]
[1732963629842,0.81477629,3659.4,3658.3,0.8313]
[1732963629843,0.7746,3659.2,3658.3,0.8313]
[1732963630140,0.7746,3659.2,3658.3,2.7335]
[1732963630141,10.91485007,3659.1,3658.3,2.7335]
[1732963630339,10.91485007,3659.1,3658.4,2.73343]
[1732963630340,0.69648645,3659.0,3658.4,2.73343]
[1732963630936,0.69648645,3659.0,3658.6,2.73327]
[1732963631953,0.69648645,3659.0,3658.3,2.73348]
[1732963632239,3.42948645,3659.0,3658.2,2.73357]
[1732963632620,3.42948645,3659.0,3658.0,2.73372]
[1732963632621,2.73307,3658.9,3658.0,2.73372]
[1732963632829,0.81477629,3658.8,3658.2,2.73357]
[1732963633002,0.81477629,3658.8,3658.0,2.73367]
[1732963633199,0.81477629,3658.8,3658.2,2.73355]
[1732963633533,0.81477629,3658.8,3658.1,2.73361]
[1732963633730,0.81477629,3658.8,3657.9,2.7338]
[1732963633934,8.14776286,3659.1,3658.6,2.73322]
[1732963634114,8.14776286,3659.1,3657.8,0.776]
[1732963634115,0.8067,3659.6,3658.9,2.73306]
[1732963635260,0.8067,3659.6,3659.0,2.73297]
[1732963636017,0.8067,3659.6,3659.1,2.73289]
[1732963636221,0.8067,3659.6,3658.6,0.7939]
[1732963636422,0.8067,3659.6,3659.0,2.73297]
[1732963637360,0.03416101,3659.5,3659.0,2.73297]
[1732963637556,0.8067,3659.6,3658.6,0.7939]
[1732963637756,8.14776286,3659.7,3658.6,0.7939]
[1732963637963,8.14776286,3659.7,3659.2,2.73278]
[1732963638136,9.31643515,3659.7,3659.2,2.73278]
[1732963638925,9.31643515,3659.7,3659.0,2.73297]
[1732963638926,9.31643515,3659.7,3658.6,0.7939]
[1732963639122,9.31643515,3659.7,3658.5,4.83148401]
[1732963639123,0.55,3659.3,3658.5,2.73333]
[1732963639327,0.55,3659.3,3658.4,2.73338]
[1732963639536,2.73293,3659.1,3658.2,2.73351]
[1732963639736,0.34259045,3659.2,3658.4,2.73338]
[1732963639962,3.07548045,3659.2,3658.4,2.73342]
[1732963640369,0.34259045,3659.2,3658.4,2.73342]
[1732963640529,0.34259045,3659.2,3658.6,2.73322]
[1732963640727,0.44319704,3659.1,3658.6,2.73322]
[1732963641071,0.44319704,3659.1,3658.1,0.7939]
[1732963641271,8.14776286,3659.3,3658.9,2.73299]
[1732963642060,8.14776286,3659.3,3659.1,2.7329]
[1732963642650,2.73188,3660.5,3659.1,2.7329]
[1732963642651,8.14776286,3660.2,3659.7,2.73239]
[1732963642883,8.14776286,3660.1,3659.3,2.73276]
[1732963643198,8.14776286,3660.1,3659.7,2.7324]
[1732963643998,8.14776286,3660.1,3659.5,2.7326]
[1732963644147,8.14776286,3660.1,3659.6,2.7325]
[1732963644348,0.58415545,3660.0,3659.0,2.73297]
[1732963644548,0.8067,3659.6,3658.7,0.7939]
[1732963644748,0.03416068,3659.5,3658.4,2.73343]
[1732963644988,2.73293,3659.1,3658.3,2.73346]
[1732963645284,0.55,3659.1,3658.5,2.73335]
[1732963645676,0.55,3659.1,3658.6,2.73327]
[1732963645861,0.2506459,3659.0,3658.6,2.73327]
[1732963646072,8.69776286,3659.1,3658.4,2.73342]
[1732963646385,0.25068981,3659.0,3658.6,2.73323]
[1732963646553,8.14776286,3659.0,3658.4,2.73341]
[1732963646756,0.2507006,3658.9,3658.4,2.73341]
[1732963646951,8.14776286,3659.0,3658.4,2.73341]
[1732963647147,0.25070046,3658.9,3658.4,2.73341]
[1732963647392,8.14776286,3659.0,3658.4,2.73341]
[1732963647598,0.25078286,3658.9,3658.4,2.73341]
[1732963647803,9.04320915,3659.0,3658.4,2.73341]
[1732963647999,0.25078803,3658.9,3658.5,2.73335]
[1732963648148,9.04320915,3659.0,3658.5,2.73335]
[1732963648354,9.04320915,3659.0,3658.2,2.73358]
[1732963648355,8.39870382,3658.9,3658.3,2.73349]
[1732963648549,0.8067,3658.7,3658.3,2.73349]
[1732963649289,0.8067,3658.7,3658.1,2.73365]
[1732963649995,0.25101137,3658.6,3658.1,2.73365]
[1732963650212,0.8067,3658.7,3658.1,2.73365]
[1732963650413,8.69776286,3658.6,3657.8,2.73383]
[1732963650583,0.25100699,3658.5,3658.0,2.73368]
[1732963650918,0.25100699,3658.5,3657.7,2.09817401]
[1732963650919,9.59320915,3658.6,3658.1,2.73359]
[1732963651212,9.59320915,3658.6,3657.7,4.83211401]
[1732963651410,9.59320915,3658.6,3657.8,2.73388]
[1732963651716,9.59320915,3658.6,3658.1,2.73365]
[1732963651888,8.14776286,3658.6,3657.8,2.73388]
[1732963652089,8.14776286,3658.6,3657.7,2.09817401]
[1732963652288,8.14776286,3658.6,3658.2,2.73353]
[1732963652685,8.14776286,3658.6,3658.3,2.73349]
[1732963654216,8.14776286,3658.6,3658.0,2.7337]
[1732963654400,1.08809129,3658.5,3657.8,2.73381]
[1732963654612,0.55,3658.5,3657.7,4.83205401]
[1732963654902,0.55,3658.3,3657.5,2.73409]
[1732963655102,8.14776286,3657.8,3657.2,2.73432]
[1732963655781,8.14776286,3657.8,3657.0,3.54638]
[1732963656089,8.14776286,3657.8,3657.3,2.73424]
[1732963656522,8.14776286,3657.8,3657.1,2.73437]
[1732963656695,8.14776286,3657.8,3657.2,2.73426]
[1732963657019,0.25058384,3657.7,3657.2,2.73426]
[1732963657182,8.14776286,3657.8,3657.3,2.73424]
[1732963657528,1.3954,3657.3,3656.4,2.73485]
[1732963657674,0.55,3657.1,3656.3,2.735]
[1732963657879,0.55,3657.1,3656.5,2.73478]
[1732963658079,0.80037109,3657.1,3656.5,2.73478]
[1732963658429,0.97312045,3657.1,3656.4,2.73492]
[1732963659083,0.55,3656.9,3656.4,2.73492]
[1732963659277,0.55,3656.9,3656.5,2.73481]
[1732963659480,0.55,3656.9,3656.0,2.09817401]
[1732963659481,0.55,3656.9,3656.3,2.73497]
[1732963659681,0.55,3656.9,3656.4,2.73491]
[1732963659915,0.55,3656.9,3656.3,2.73497]
[1732963660117,0.55,3656.9,3656.6,2.73477]
[1732963660528,1.46208833,3656.9,3656.1,2.73515]
[1732963661035,0.55,3656.6,3655.8,2.73531]
[1732963661183,0.55,3656.6,3655.6,2.09817401]
[1732963661184,1.3954,3656.6,3655.7,2.73545]
[1732963661387,1.3954,3656.6,3656.1,2.73511]
[1732963661813,0.8454,3656.6,3656.1,2.73511]
[1732963662225,1.44457441,3656.6,3656.1,2.73513]
[1732963662423,1.44457441,3656.6,3656.1,2.73508]
[1732963662635,1.44457441,3656.6,3656.0,2.73521]
[1732963662934,1.44457441,3656.6,3655.9,2.73527]
[1732963663145,1.44457441,3656.6,3655.8,2.73537]
[1732963663296,9.60985119,3656.5,3655.7,2.73545]
[1732963663496,8.69776286,3656.5,3655.6,2.73547]
[1732963663699,2.73493,3656.4,3655.4,2.73567]
[1732963663894,2.73493,3656.4,3655.7,2.73543]
[1732963664217,8.14776286,3656.2,3655.7,2.73543]
[1732963664415,0.8454,3656.1,3655.7,2.73543]
[1732963664618,8.14776286,3656.2,3655.6,2.09817401]
[1732963664820,8.14776286,3656.2,3656.0,2.73522]
[1732963665021,8.14776286,3656.2,3656.1,2.73515]
[1732963665748,8.14776286,3655.9,3655.4,2.73567]
[1732963666039,8.14776286,3655.9,3655.7,2.73545]
[1732963666343,8.14776286,3655.9,3655.4,2.73562]
[1732963666540,8.14776286,3655.9,3655.5,2.73553]
[1732963666838,8.75970931,3655.9,3655.3,2.73568]
[1732963667043,8.14776286,3655.8,3655.3,2.73567]
[1732963667356,8.14776286,3656.0,3655.5,2.7356]
[1732963668013,8.14776286,3656.0,3655.1,2.7359]
[1732963668215,0.8454,3656.1,3655.7,2.73539]
[1732963668216,8.14776286,3655.8,3655.7,2.73539]
[1732963669402,8.14776286,3655.8,3655.5,2.73559]
[1732963669602,8.14776286,3655.8,3655.3,2.73575]
[1732963669846,8.14776286,3655.8,3655.4,2.73562]
[1732963670245,8.14776286,3655.8,3655.5,2.73559]
[1732963670840,8.14776286,3655.8,3655.4,2.73566]
[1732963671045,8.14776286,3655.8,3655.0,2.09817401]
[1732963671046,8.14776286,3655.8,3655.5,2.73556]
[1732963671247,8.14776286,3655.8,3655.6,2.73551]
[1732963671748,8.14776286,3655.8,3655.0,2.09817401]
[1732963671899,8.14776286,3655.8,3655.3,2.73569]
[1732963672227,8.14776286,3655.7,3655.6,2.73552]
[1732963672429,8.14776286,3656.7,3656.0,2.7352]
[1732963672635,8.14776286,3656.7,3656.0,2.73519]
[1732963672814,10.88248286,3656.7,3656.0,2.73519]
[1732963673013,8.14776286,3656.7,3655.6,0.8105]
[1732963673234,1.203273,3656.6,3655.2,3.54625]
[1732963673435,1.16908229,3656.6,3655.9,2.73523]
[1732963673606,1.16908229,3656.6,3656.0,2.73522]
[1732963674105,1.16908229,3656.6,3655.2,0.8105]
[1732963674421,2.73486,3656.5,3655.7,2.73538]
[1732963674622,8.14776286,3656.3,3655.5,2.73558]
[1732963674949,8.14776286,3656.3,3655.5,2.73557]
[1732963674950,2.73517,3656.1,3655.5,2.73557]
[1732963675450,8.95626286,3656.2,3655.0,2.09817401]
[1732963675630,8.95626286,3656.2,3655.4,2.73567]
[1732963675807,8.14776286,3656.1,3655.8,2.73535]
[1732963676005,0.89562629,3656.0,3655.8,2.73535]
[1732963676203,8.14776286,3656.0,3655.6,2.73547]
[1732963676478,8.14776286,3656.0,3655.0,2.09817401]
[1732963676628,8.14776286,3656.0,3655.7,2.7354]
[1732963677018,8.14776286,3656.0,3655.1,2.7359]
[1732963677205,8.14776286,3656.0,3655.4,2.7356]
[1732963677411,9.04338915,3656.0,3655.6,2.73546]
[1732963677606,9.04338915,3656.0,3655.7,2.73544]
[1732963678339,8.14776286,3656.0,3655.2,2.73582]
[1732963678524,8.14776286,3656.0,3655.6,2.73545]
[1732963678707,8.14776286,3656.0,3655.4,2.73566]
[1732963679653,8.14776286,3656.0,3655.2,2.73581]
[1732963679849,8.14776286,3656.0,3655.6,2.73546]
[1732963680145,8.14776286,3656.0,3655.6,2.73552]
[1732963680359,8.14776286,3656.0,3655.1,0.8105]
[1732963680562,8.14776286,3656.1,3655.8,2.73537]
[1732963680770,8.14776286,3656.1,3656.0,2.73522]
[1732963682023,0.8085,3657.0,3656.0,0.8105]
[1732963682253,0.8085,3657.0,3656.4,2.73487]
[1732963682421,0.8085,3657.0,3656.1,2.73515]
[1732963682641,0.03418555,3656.9,3656.3,2.73495]
[1732963682948,2.7347,3656.7,3656.1,2.73515]
[1732963683121,0.8085,3657.0,3655.6,0.8105]
[1732963683122,0.27347,3656.6,3655.6,0.8105]
[1732963683319,0.27347,3656.6,3656.0,2.73516]
[1732963683534,8.14776286,3656.9,3656.4,2.73487]
[1732963683731,8.14776286,3656.9,3655.6,0.8105]
[1732963683732,0.8085,3657.5,3656.9,2.73454]
[1732963683949,11.13190755,3657.4,3655.8,2.09817401]
[1732963684149,8.39770604,3657.3,3656.5,2.73479]
[1732963684354,8.39796741,3657.2,3656.7,2.73469]
[1732963684539,0.25020455,3657.1,3656.5,2.73479]
[1732963684743,0.03418403,3657.0,3655.7,0.8105]
[1732963684939,8.14776286,3656.7,3655.7,2.73542]
[1732963685141,2.73522,3656.1,3655.1,2.73583]
[1732963685363,0.8085,3655.9,3655.1,2.73583]
[1732963685526,0.8085,3655.9,3655.2,2.73581]
[1732963685733,0.25027582,3655.8,3654.7,2.09817401]
[1732963685930,11.13354868,3655.7,3654.8,2.73611]
[1732963686126,2.76974857,3655.6,3654.8,2.73611]
[1732963686361,2.7356,3655.5,3654.6,2.73621]
[1732963686560,0.8085,3655.3,3654.5,2.73631]
[1732963686760,0.8085,3655.3,3654.5,3.31224446]
[1732963687078,0.8085,3655.3,3654.8,2.73611]
[1732963687278,0.8085,3655.3,3654.9,2.73603]
[1732963687434,8.14776286,3655.4,3655.0,2.73597]
[1732963687868,8.14776286,3655.6,3655.1,2.73588]
[1732963688072,0.25044286,3655.5,3655.1,2.73588]
[1732963688241,8.14776286,3655.6,3654.7,2.73619]
[1732963688575,0.25044067,3655.5,3654.5,3.31227446]
[1732963688731,0.25044067,3655.4,3654.6,2.73621]